Workbook

Sheet Başlangıç
B1: BU ŞABLON HAKKINDA
B2: Bu şablonu kullanarak bir İş Başlangıcı Finansal Planı oluşturun.
B3: Genel Bakış çalışma sayfasında bir finansal planın genel çizgileri hakkında bilgi edinin.
B4: Başlangıç ​​Maliyetlerini ve Kar ve Zararı hesaplamak için Başlangıç ​​Maliyetleri Şablonu ve Kar ve Zarar Şablonu çalışma sayfalarını kullanın.
B5: Başlangıç Maliyetleri Örneği ve Kar ve Zarar Örneği çalışma sayfaları tablolarda örnek veriler içerir.
B6: Not:
B7: Çalışma sayfasının A sütununda ek yönergeler sağlanmıştır. Bu metin özellikle gizlendi. Metni kaldırmak için A sütununu ve ardından SİL seçeneğini belirleyin. Metni göstermek için A sütununu seçin ve yazı tipi rengini değiştirin.
B8: Tablolar hakkında daha fazla bilgi edinmek için bir tabloda sırasıyla SHIFT ve F10 tuşlarına basıp TABLO seçeneğini belirleyin, ardından ALTERNATİF METİN’i seçin.

Sheet Genel Bakış
B1: İŞ BAŞLANGICI FİNANSAL PLANI
B2: Bir finansal plan oluşturmak, tüm iş planlamasının bir araya geldiği yerdir. Ürününüzü, hedef pazarınızı ve hedef müşterilerinizi fiyatlandırma ile birlikte belirledikten sonra, maliyetleri, satışları ve kârı tahmin etmeye başlayabilirsiniz. Bu öğeler ve varsayımlarınızı kullanarak satış tahmininizi belirleyebilirsiniz. İşin kalan kısmı, çıkacak masrafları tahmin etmektir. Bu, ne zaman kâra geçtiğinizi sürekli olarak görmek için önemlidir. Ayrıca işinizi kurarken, müşteri satışları veya elde edilen nakit alınmadan önce hangi harcamaları finanse etmeniz gerektiğini bilmek de önemlidir.
B3: Tahmini Başlangıç Maliyetleri: Bir sonraki sekmedeki Başlangıç ​​Maliyetleri Şablonu tablosu, başlangıç ​​için bazı yönergelerin bulunduğu boş bir şablon sağlar. Bir sonraki sekmede bulunan Başlangıç ​​Maliyetleri Örneği, işletmenizi açmak için ihtiyaç duyabileceğiniz sürekli ve tek seferlik maliyet kalemlerinin bir örneğini gösterir. Birçok işletmeye zaman içinde kredi ile ödeme yapılır ve hemen nakit ödeme gelmez. Tek seferlik harcamaya ek olarak, tasarruflardan veya yeni yatırımdan kaç aylık yinelenen kalemi finanse etmek zorunda kalacağınız konusunda bir varsayımda bulunarak, şirkete nakit akışının ne zaman başlayacağını tahmin etmek önemlidir.
B4: Tahmini Kar ve Zarar Modeli: Kâr ve Zarar Şablonu etiketli sekmede, Satış Tahmini ve Kar ve Zarar Modeli yapmak için boş bir şablon bulacaksınız. Bir sonraki sekme olan Kar ve Zarar Örneği, küçük bir işletmenin ilk 12 aylık operasyon tahminlerinin bir örneğini gösterir. Her modeldeki tablonun üst kısmı, tahmini satışları ve brüt kârı gösterir. Bu, satış tahmininizi oluşturmaya başlamak için iyi bir yerdir. Aşağıdaki bölümde, aynı aylar için öngördüğünüz yinelenen giderler listelenmiştir. Bunlar, önceki bölümde tamamladığınız tahmini başlangıç ​​maliyetleriyle tutarlı olmalıdır. Bu modelin altında, ne zaman kâra geçtiğinizi ve kârlılığınıza en çok hangi gider kalemlerinin etki ettiğini görürsünüz.
B5: Gelirleri ve Satılan Malların Maliyetini tahmin etmek için yaptığınız varsayımları takip edin. Henüz faaliyete geçmemiş işletmelerde, ürününüz veya hizmetiniz için bunları nasıl tahmin edeceğinizi bilmelisiniz. Bazı tahmin yönergeleri aşağıda verilmiştir:
B6: Gelirler: Hedef pazarınızdan (potansiyel müşteriler, işletmeler veya tüketiciler grubu) ilk yılda kaçının hedef olacağını belirleyerek başlayın. Bunların yüzde kaçını karşılamayı bekliyorsunuz? Ürününüzü veya hizmetinizi satın almaları için ortalama işlem miktarı nedir? İlk ayda, ikinci ayda ve sonraki aylarda kaç tane işlem yapabilirsiniz? İlk ay bir sayıyla başlayıp sonra bunu örneğin yüzde 10 oranında büyütebilirsiniz. Örneğin, şehrinizdeki küçük işletmelere temizlik hizmeti veriyorsanız ve temizlik hizmetine ihtiyacı olduğunu düşündüğünüz 500 işletme varsa. Ortalama sözleşme aylık 250 ABD Doları ise, ilk yıl için her ay kaç işletmenin sözleşme imzalayabileceğini tahmin etmeniz gerekir.
B7: Satılan Malların Maliyeti (COGS): Bu, ürünler ve bazı hizmetler için hesaplanmalıdır. Bu, ürünü üretmek için dahil edilen maliyettir. Örneğin, giysi satıyorsanız, COGS, bir üreticiden giysiyi satın almak için ödediğiniz fiyattır. Giysileri kendiniz yapıyorsanız, COGS, bunları yapmak için malzeme ve işçilik maliyeti olacaktır. Hizmetler için bu, bir saatlik faturalanabilir çalışmanın doğrudan işçilik maliyeti olacaktır. Kâr ve Zararda Brüt Kârın altındaki her şey, kira veya telefon ve hatta pazarlama gibi işletmenin geneli için sabit veya genel giderlerdir.

Sheet Başlangıç Maliyetleri Şablonu
B1: BAŞLANGIÇ MALİYETLERİ
B2: Kahve Dükkanınız | C2: =TODAY() -> 2022-01-28
B4: MALİYET KALEMLERİ | C4: AYLAR | D4: MALİYET/ AY | E4: TEK SEFERLİK MALIYET | F4: TOPLAM MALİYET
B5: Reklam/Pazarlama | F5: =(C5*D5)+IF(E5>0,E5,0) -> ₺0
B6: Çalışan Maaşları | F6: =(C6*D6)+IF(E6>0,E6,0) -> ₺0
B7: Çalışan Bordro Vergileri ve Yardımları | F7: ₺0
B8: Kira/Kira Ödemeleri/Faturalar | F8: ₺0
B9: Posta/Nakliye | F9: ₺0
B10: TAHMİNİ BAŞLANGIÇ BÜTÇESİ | F10: =SUBTOTAL(109,Başlangıç[TOPLAM MALİYET]) -> 0

Sheet Başlangıç Maliyetleri Örneği
B1: BAŞLANGIÇ MALİYETLERİ
B2: ='Başlangıç Maliyetleri Şablonu'!B2 -> Kahve Dükkanınız | C2: =TODAY() -> 2022-01-28
B4: MALİYET KALEMLERİ | C4: AYLAR | D4: MALİYET/ AY | E4: TEK SEFERLİK MALIYET | F4: TOPLAM MALİYET
B5: Reklam/Pazarlama | C5: 3 | D5: ₺300 | E5: ₺2,000 | F5: =(C5*D5)+IF(E5>0,E5,0) -> ₺2,900
B6: Çalışan Maaşları | C6: 4 | D6: ₺3,500 | E6: ₺2 | F6: =(C6*D6)+IF(E6>0,E6,0) -> ₺14,002
B7: Çalışan Bordro Vergileri ve Yardımları | C7: 4 | D7: ₺500 | E7: ₺2,000 | F7: ₺4,000
B8: Kira/Kira Ödemeleri/Faturalar | C8: 4 | D8: ₺750 | E8: ₺3,000 | F8: ₺6,000
B9: Posta/Nakliye | C9: 1 | D9: ₺25 | E9: ₺25 | F9: ₺50
B10: TAHMİNİ BAŞLANGIÇ BÜTÇESİ | F10: =SUM(F6:F9) -> ₺24,052

Sheet Kar ve Zarar Şablonu
B1: BAŞLANGIÇ MALİYETLERİ
B2: ='Başlangıç Maliyetleri Şablonu'!B2 -> Kahve Dükkanınız | C2: =TODAY() -> 2022-01-28
B4: GELİR | C4: OCA | D4: ŞUB | E4: MAR | F4: NİS | G4: MAY | H4: HAZ | I4: TEM | J4: AĞU | K4: EYL | L4: EKİ | M4: KAS | N4: ARA | O4: YB
B5: Tahmini Ürün Satışları | C5: ₺0 | D5: ₺0 | E5: ₺0 | F5: ₺0 | G5: ₺0 | H5: ₺0 | I5: ₺0 | J5: ₺0 | K5: ₺0 | L5: ₺0 | M5: ₺0 | N5: ₺0 | O5: =SUM(C5:N5) -> ₺0
B6: Daha Az Satış İadesi ve İndirimler | C6: ₺0 | D6: ₺0 | E6: ₺0 | F6: ₺0 | G6: ₺0 | H6: ₺0 | I6: ₺0 | J6: ₺0 | K6: ₺0 | L6: ₺0 | M6: ₺0 | N6: ₺0 | O6: =SUM(C6:N6) -> ₺0
B7: Hizmet Geliri | C7: ₺0 | D7: ₺0 | E7: ₺0 | F7: ₺0 | G7: ₺0 | H7: ₺0 | I7: ₺0 | J7: ₺0 | K7: ₺0 | L7: ₺0 | M7: ₺0 | N7: ₺0 | O7: ₺0
B8: Diğer Gelir | C8: ₺0 | D8: ₺0 | E8: ₺0 | F8: ₺0 | G8: ₺0 | H8: ₺0 | I8: ₺0 | J8: ₺0 | K8: ₺0 | L8: ₺0 | M8: ₺0 | N8: ₺0 | O8: ₺0
B9: Net Satışlar | C9: =SUBTOTAL(109,ÖrnekGelir[OCA]) -> ₺0 | D9: =SUBTOTAL(109,ÖrnekGelir[ŞUB]) -> ₺0 | E9: =SUBTOTAL(109,ÖrnekGelir[MAR]) -> ₺0 | F9: =SUBTOTAL(109,ÖrnekGelir[NİS]) -> ₺0 | G9: =SUBTOTAL(109,ÖrnekGelir[MAY]) -> ₺0 | H9: =SUBTOTAL(109,ÖrnekGelir[HAZ]) -> ₺0 | I9: =SUBTOTAL(109,ÖrnekGelir[TEM]) -> ₺0 | J9: =SUBTOTAL(109,ÖrnekGelir[AĞU]) -> ₺0 | K9: =SUBTOTAL(109,ÖrnekGelir[EYL]) -> ₺0 | L9: =SUBTOTAL(109,ÖrnekGelir[EKİ]) -> ₺0 | M9: =SUBTOTAL(109,ÖrnekGelir[KAS]) -> ₺0 | N9: =SUBTOTAL(109,ÖrnekGelir[ARA]) -> ₺0 | O9: =SUM(ÖrnekGelir[[#Totals],[OCA]:[ARA]]) -> ₺0
B10: Satılan Malların Maliyeti | C10: =C5*0.4 -> ₺0 | D10: ₺0 | E10: ₺0 | F10: ₺0 | G10: ₺0 | H10: ₺0 | I10: ₺0 | J10: ₺0 | K10: ₺0 | L10: ₺0 | M10: ₺0 | N10: ₺0 | O10: ₺0
B11: Brüt Kar | C11: =IFERROR(ÖrnekGelir[[#Totals],[OCA]]-C10,"") -> ₺0 | D11: =IFERROR(ÖrnekGelir[[#Totals],[ŞUB]]-D10,"") -> ₺0 | E11: =IFERROR(ÖrnekGelir[[#Totals],[MAR]]-E10,"") -> ₺0 | F11: =IFERROR(ÖrnekGelir[[#Totals],[NİS]]-F10,"") -> ₺0 | G11: =IFERROR(ÖrnekGelir[[#Totals],[MAY]]-G10,"") -> ₺0 | H11: =IFERROR(ÖrnekGelir[[#Totals],[HAZ]]-H10,"") -> ₺0 | I11: =IFERROR(ÖrnekGelir[[#Totals],[TEM]]-I10,"") -> ₺0 | J11: =IFERROR(ÖrnekGelir[[#Totals],[AĞU]]-J10,"") -> ₺0 | K11: =IFERROR(ÖrnekGelir[[#Totals],[EYL]]-K10,"") -> ₺0 | L11: =IFERROR(ÖrnekGelir[[#Totals],[EKİ]]-L10,"") -> ₺0 | M11: =IFERROR(ÖrnekGelir[[#Totals],[KAS]]-M10,"") -> ₺0 | N11: =IFERROR(ÖrnekGelir[[#Totals],[ARA]]-N10,"") -> ₺0 | O11: ₺0
B13: GİDERLER | C13: OCA | D13: ŞUB | E13: MAR | F13: NİS | G13: MAY | H13: HAZ | I13: TEM | J13: AĞU | K13: EYL | L13: EKİ | M13: KAS | N13: ARA | O13: YB
B14: Maaşlar ve Ücretler | C14: ₺0 | D14: ₺0 | E14: ₺0 | F14: ₺0 | G14: ₺0 | H14: ₺0 | I14: ₺0 | J14: ₺0 | K14: ₺0 | L14: ₺0 | M14: ₺0 | N14: ₺0 | O14: =SUM(C14:N14) -> ₺0
B15: Pazarlama/Reklam | C15: ₺0 | D15: ₺0 | E15: ₺0 | F15: ₺0 | G15: ₺0 | H15: ₺0 | I15: ₺0 | J15: ₺0 | K15: ₺0 | L15: ₺0 | M15: ₺0 | N15: ₺0 | O15: =SUM(C15:N15) -> ₺0
B16: Satış Komisyonları | C16: ₺0 | D16: ₺0 | E16: ₺0 | F16: ₺0 | G16: ₺0 | H16: ₺0 | I16: ₺0 | J16: ₺0 | K16: ₺0 | L16: ₺0 | M16: ₺0 | N16: ₺0 | O16: ₺0
B17: Kira | C17: ₺0 | D17: ₺0 | E17: ₺0 | F17: ₺0 | G17: ₺0 | H17: ₺0 | I17: ₺0 | J17: ₺0 | K17: ₺0 | L17: ₺0 | M17: ₺0 | N17: ₺0 | O17: ₺0
B18: Diğer 1 | C18: ₺0 | D18: ₺0 | E18: ₺0 | F18: ₺0 | G18: ₺0 | H18: ₺0 | I18: ₺0 | J18: ₺0 | K18: ₺0 | L18: ₺0 | M18: ₺0 | N18: ₺0 | O18: ₺0
B19: Toplam Giderler | C19: =IF(SUM(C14:C18)=0,"",SUM(C14:C18)) ->  | O19: =SUM(ÖrnekGiderler[[#Totals],[OCA]:[ARA]]) -> ₺0
B20: Vergilerden Önceki Gelir | C20: =IFERROR('Kar ve Zarar Şablonu'!$C$11-ÖrnekGiderler[[#Totals],[OCA]],"") ->  | D20: =IFERROR('Kar ve Zarar Şablonu'!$C$11-ÖrnekGiderler[[#Totals],[ŞUB]],"") ->  | E20: =IFERROR('Kar ve Zarar Şablonu'!$C$11-ÖrnekGiderler[[#Totals],[MAR]],"") ->  | F20: =IFERROR('Kar ve Zarar Şablonu'!$C$11-ÖrnekGiderler[[#Totals],[NİS]],"") ->  | G20: =IFERROR('Kar ve Zarar Şablonu'!$C$11-ÖrnekGiderler[[#Totals],[MAY]],"") ->  | H20: =IFERROR('Kar ve Zarar Şablonu'!$C$11-ÖrnekGiderler[[#Totals],[HAZ]],"") ->  | I20: =IFERROR('Kar ve Zarar Şablonu'!$C$11-ÖrnekGiderler[[#Totals],[TEM]],"") ->  | J20: =IFERROR('Kar ve Zarar Şablonu'!$C$11-ÖrnekGiderler[[#Totals],[AĞU]],"") ->  | K20: =IFERROR('Kar ve Zarar Şablonu'!$C$11-ÖrnekGiderler[[#Totals],[EYL]],"") ->  | L20: =IFERROR('Kar ve Zarar Şablonu'!$C$11-ÖrnekGiderler[[#Totals],[EKİ]],"") ->  | M20: =IFERROR('Kar ve Zarar Şablonu'!$C$11-ÖrnekGiderler[[#Totals],[KAS]],"") ->  | N20: =IFERROR('Kar ve Zarar Şablonu'!$C$11-ÖrnekGiderler[[#Totals],[ARA]],"") ->  | O20: ₺0
B21: Gelir Vergisi Gideri | C21: =IFERROR(C20*0.15," ") ->  | D21: =IFERROR(D20*0.15," ") ->  | E21: =IFERROR(E20*0.15," ") ->  | O21: =SUM('Kar ve Zarar Şablonu'!$C$21:$N$21) -> ₺0
B23: NET GELİR | C23: =IFERROR(C20-'Kar ve Zarar Şablonu'!$C$21,"") ->  | D23: =IFERROR(D20-'Kar ve Zarar Şablonu'!$D$21,"") ->  | E23: =IFERROR(E20-'Kar ve Zarar Şablonu'!$E$21,"") ->  | F23: =IFERROR(F20-'Kar ve Zarar Şablonu'!$F$21,"") ->  | G23: =IFERROR(G20-'Kar ve Zarar Şablonu'!$G$21,"") ->  | H23: =IFERROR(H20-'Kar ve Zarar Şablonu'!$H$21,"") ->  | I23: =IFERROR(I20-'Kar ve Zarar Şablonu'!$I$21,"") ->  | J23: =IFERROR(J20-'Kar ve Zarar Şablonu'!$J$21,"") ->  | K23: =IFERROR(K20-'Kar ve Zarar Şablonu'!$K$21,"") ->  | L23: =IFERROR(L20-'Kar ve Zarar Şablonu'!$L$21,"") ->  | M23: =IFERROR(M20-'Kar ve Zarar Şablonu'!$M$21,"") ->  | N23: =IFERROR(N20-'Kar ve Zarar Şablonu'!$N$21,"") ->  | O23: =IFERROR(O20-'Kar ve Zarar Şablonu'!$O$21,"") -> ₺0

Sheet Kar ve Zarar Örneği
B1: BAŞLANGIÇ MALİYETLERİ
B2: ='Başlangıç Maliyetleri Şablonu'!B2 -> Kahve Dükkanınız | C2: =TODAY() -> 2022-01-28
B4: GELİR | C4: OCA | D4: ŞUB | E4: MAR | F4: NİS | G4: MAY | H4: HAZ | I4: TEM | J4: AĞU | K4: EYL | L4: EKİ | M4: KAS | N4: ARA | O4: YB
B5: Tahmini Ürün Satışları | C5: ₺5,000 | D5: ₺13,000 | E5: ₺16,000 | F5: ₺7,000 | G5: ₺14,500 | H5: ₺16,400 | I5: ₺22,500 | J5: ₺23,125 | K5: ₺24,549 | L5: ₺22,000 | M5: ₺25,000 | N5: ₺27,349 | O5: =SUM(C5:N5) -> ₺216,423
B6: Daha Az Satış İadesi ve İndirimler | C6: ₺0 | D6: -₺350 | E6: ₺0 | F6: -₺206 | G6: -₺234 | H6: ₺0 | I6: ₺0 | J6: -₺280 | K6: -₺1,200 | L6: -₺1,600 | M6: ₺0 | N6: -₺2,400 | O6: =SUM(C6:N6) -> -₺6,270
B7: Hizmet Geliri | C7: ₺0 | D7: ₺0 | E7: ₺0 | F7: ₺0 | G7: ₺0 | H7: ₺250 | I7: ₺350 | J7: ₺100 | K7: ₺0 | L7: ₺0 | M7: ₺1,245 | N7: ₺1,360 | O7: ₺3,305
B8: Diğer Gelir | C8: ₺0 | D8: ₺0 | E8: ₺0 | F8: ₺0 | G8: ₺0 | H8: ₺0 | I8: ₺0 | J8: ₺1,500 | K8: ₺0 | L8: ₺0 | M8: ₺0 | N8: ₺0 | O8: ₺1,500
B9: Net Satışlar | C9: =SUBTOTAL(109,GerçekGelir[OCA]) -> ₺5,000 | D9: =SUBTOTAL(109,GerçekGelir[ŞUB]) -> ₺12,650 | E9: =SUBTOTAL(109,GerçekGelir[MAR]) -> ₺16,000 | F9: =SUBTOTAL(109,GerçekGelir[NİS]) -> ₺6,794 | G9: =SUBTOTAL(109,GerçekGelir[MAY]) -> ₺14,266 | H9: =SUBTOTAL(109,GerçekGelir[HAZ]) -> ₺16,650 | I9: =SUBTOTAL(109,GerçekGelir[TEM]) -> ₺22,850 | J9: =SUBTOTAL(109,GerçekGelir[AĞU]) -> ₺24,445 | K9: =SUBTOTAL(109,GerçekGelir[EYL]) -> ₺23,349 | L9: =SUBTOTAL(109,GerçekGelir[EKİ]) -> ₺20,400 | M9: =SUBTOTAL(109,GerçekGelir[KAS]) -> ₺26,245 | N9: =SUBTOTAL(109,GerçekGelir[ARA]) -> ₺26,309 | O9: =SUM(GerçekGelir[[#Totals],[OCA]:[ARA]]) -> ₺214,958
B10: Satılan Malların Maliyeti | C10: =C5*0.4 -> ₺2,000 | D10: ₺5,200 | E10: ₺6,400 | F10: ₺2,800 | G10: ₺5,800 | H10: ₺6,560 | I10: ₺9,000 | J10: ₺9,250 | K10: ₺9,820 | L10: ₺8,800 | M10: ₺10,000 | N10: ₺10,940 | O10: ₺86,569
B11: Brüt Kar | C11: =IFERROR(GerçekGelir[[#Totals],[OCA]]-C10,"") -> ₺3,000 | D11: =IFERROR(GerçekGelir[[#Totals],[ŞUB]]-D10,"") -> ₺7,450 | E11: =IFERROR(GerçekGelir[[#Totals],[MAR]]-E10,"") -> ₺9,600 | F11: =IFERROR(GerçekGelir[[#Totals],[NİS]]-F10,"") -> ₺3,994 | G11: =IFERROR(GerçekGelir[[#Totals],[MAY]]-G10,"") -> ₺8,466 | H11: =IFERROR(GerçekGelir[[#Totals],[HAZ]]-H10,"") -> ₺10,090 | I11: =IFERROR(GerçekGelir[[#Totals],[TEM]]-I10,"") -> ₺13,850 | J11: =IFERROR(GerçekGelir[[#Totals],[AĞU]]-J10,"") -> ₺15,195 | K11: =IFERROR(GerçekGelir[[#Totals],[EYL]]-K10,"") -> ₺13,529 | L11: =IFERROR(GerçekGelir[[#Totals],[EKİ]]-L10,"") -> ₺11,600 | M11: =IFERROR(GerçekGelir[[#Totals],[KAS]]-M10,"") -> ₺16,245 | N11: =IFERROR(GerçekGelir[[#Totals],[ARA]]-N10,"") -> ₺15,369 | O11: ₺128,389
B13: GİDERLER | C13: OCA | D13: ŞUB | E13: MAR | F13: NİS | G13: MAY | H13: HAZ | I13: TEM | J13: AĞU | K13: EYL | L13: EKİ | M13: KAS | N13: ARA | O13: YB
B14: Maaşlar ve Ücretler | C14: ₺2,500 | D14: ₺2,500 | E14: ₺3,500 | F14: ₺5,000 | G14: ₺5,000 | H14: ₺5,000 | I14: ₺8,000 | J14: ₺9,000 | K14: ₺9,000 | L14: ₺9,000 | M14: ₺9,000 | N14: ₺9,000 | O14: =SUM(C14:N14) -> ₺76,500
B15: Pazarlama/Reklam | C15: ₺400 | D15: ₺450 | E15: ₺450 | F15: ₺450 | G15: ₺900 | H15: ₺900 | I15: ₺900 | J15: ₺900 | K15: ₺900 | L15: ₺900 | M15: ₺1,200 | N15: ₺1,200 | O15: =SUM(C15:N15) -> ₺9,550
B16: Satış Komisyonları | C16: ₺250 | D16: ₺650 | E16: ₺800 | F16: ₺350 | G16: ₺725 | H16: ₺820 | I16: ₺1,125 | J16: ₺1,156 | K16: ₺1,227 | L16: ₺1,100 | M16: ₺1,250 | N16: ₺1,367 | O16: ₺10,821
B17: Kira | C17: ₺1,250 | D17: ₺1,250 | E17: ₺1,250 | F17: ₺1,250 | G17: ₺1,250 | H17: ₺1,250 | I17: ₺1,250 | J17: ₺1,250 | K17: ₺1,250 | L17: ₺1,250 | M17: ₺1,250 | N17: ₺1,250 | O17: ₺15,000
B18: Toplam Giderler | C18: =IF(SUM(C14:C17)=0,"",SUM(C14:C17)) -> ₺4,400 | D18: ₺4,850 | E18: ₺6,000 | F18: ₺7,050 | G18: ₺7,875 | H18: ₺7,970 | I18: ₺11,275 | J18: ₺12,306 | K18: ₺12,377 | L18: ₺12,250 | M18: ₺12,700 | N18: ₺12,817 | O18: =SUM(GerçekGiderler[[#Totals],[OCA]:[ARA]]) -> ₺111,871
B19: Vergilerden Önceki Gelir | C19: =IFERROR('Kar ve Zarar Örneği'!$C$11-GerçekGiderler[[#Totals],[OCA]],"") -> -₺1,400 | D19: =IFERROR('Kar ve Zarar Örneği'!$D$11-GerçekGiderler[[#Totals],[ŞUB]],"") -> ₺2,600 | E19: =IFERROR('Kar ve Zarar Örneği'!$E$11-GerçekGiderler[[#Totals],[MAR]],"") -> ₺3,600 | F19: =IFERROR('Kar ve Zarar Örneği'!$F$11-GerçekGiderler[[#Totals],[NİS]],"") -> -₺3,056 | G19: =IFERROR('Kar ve Zarar Örneği'!$G$11-GerçekGiderler[[#Totals],[MAY]],"") -> ₺591 | H19: =IFERROR('Kar ve Zarar Örneği'!$H$11-GerçekGiderler[[#Totals],[HAZ]],"") -> ₺2,120 | I19: =IFERROR('Kar ve Zarar Örneği'!$I$11-GerçekGiderler[[#Totals],[TEM]],"") -> ₺2,575 | J19: =IFERROR('Kar ve Zarar Örneği'!$J$11-GerçekGiderler[[#Totals],[AĞU]],"") -> ₺2,889 | K19: =IFERROR('Kar ve Zarar Örneği'!$K$11-GerçekGiderler[[#Totals],[EYL]],"") -> ₺1,152 | L19: =IFERROR('Kar ve Zarar Örneği'!$L$11-GerçekGiderler[[#Totals],[EKİ]],"") -> -₺650 | M19: =IFERROR('Kar ve Zarar Örneği'!$M$11-GerçekGiderler[[#Totals],[KAS]],"") -> ₺3,545 | N19: =IFERROR('Kar ve Zarar Örneği'!$N$11-GerçekGiderler[[#Totals],[ARA]],"") -> ₺2,552 | O19: =SUM(C19:N19) -> ₺16,518
B20: Gelir Vergisi Gideri | C20: =C19*0.15 -> -₺210 | D20: ₺390 | E20: =E19*0.15 -> ₺540 | F20: =F19*0.15 -> -₺458 | G20: =G19*0.15 -> ₺89 | H20: =H19*0.15 -> ₺318 | I20: =I19*0.15 -> ₺386 | J20: =J19*0.15 -> ₺433 | K20: =K19*0.15 -> ₺173 | L20: =L19*0.15 -> -₺98 | M20: =M19*0.15 -> ₺532 | N20: =N19*0.15 -> ₺383 | O20: =SUM('Kar ve Zarar Örneği'!$C$20:$N$20) -> ₺2,478
B22: NET GELİR | C22: =IFERROR(C19-'Kar ve Zarar Örneği'!$C$20," ") -> -₺1,190 | D22: =IFERROR(D19-'Kar ve Zarar Örneği'!$D$20," ") -> ₺2,210 | E22: =IFERROR(E19-'Kar ve Zarar Örneği'!$E$20,"") -> ₺3,060 | F22: =IFERROR(F19-'Kar ve Zarar Örneği'!$F$20,"") -> -₺2,598 | G22: =IFERROR(G19-'Kar ve Zarar Örneği'!$G$20,"") -> ₺502 | H22: =IFERROR(H19-'Kar ve Zarar Örneği'!$H$20,"") -> ₺1,802 | I22: =IFERROR(I19-'Kar ve Zarar Örneği'!$I$20,"") -> ₺2,189 | J22: =IFERROR(J19-'Kar ve Zarar Örneği'!$J$20,"") -> ₺2,455 | K22: =IFERROR(K19-'Kar ve Zarar Örneği'!$K$20,"") -> ₺979 | L22: =IFERROR(L19-'Kar ve Zarar Örneği'!$L$20,"") -> -₺553 | M22: =IFERROR(M19-'Kar ve Zarar Örneği'!$M$20,"") -> ₺3,013 | N22: =IFERROR(N19-'Kar ve Zarar Örneği'!$N$20,"") -> ₺2,169 | O22: =IFERROR(O19-'Kar ve Zarar Örneği'!$O$20,"") -> ₺14,040
